fUSD/lending_fUSD_20240419
["ID","MTS","AMOUNT","RATE_DAILY","PERIOD"]
[322944384,1713535921955,-783.18,0.00016368,2]
[322944385,1713535921964,-907.43,0.00016368,2]
[322944386,1713535921973,-500.0,0.00016368,2]
[322944387,1713535921983,-500.0,0.00016368,2]
[322944388,1713535921992,-500.0,0.00016368,2]
[322944389,1713535922002,-500.0,0.00016368,2]
[322944390,1713535922011,-500.0,0.00016368,2]
[322944391,1713535922020,-585.01,0.00016368,2]
[322944392,1713535922372,-500.0,0.00016368,2]
[322944393,1713535922392,-500.0,0.00016368,2]
[322944394,1713535922402,-500.0,0.00016368,2]
[322944395,1713535922412,-3244.27,0.00016368,2]
[322944396,1713535922421,-745.83,0.00016368,2]
[322944397,1713535922430,-1393.81,0.00016368,2]
[322944398,1713535922439,-500.0,0.00016368,2]
[322944399,1713535922449,-500.0,0.00016368,2]
[322944400,1713535922458,-500.0,0.00016368,2]
[322944401,1713535922467,-736.59,0.00016368,2]
[322944402,1713535922477,-500.0,0.00016368,2]
[322944403,1713535922486,-1155.97,0.00016368,2]
[322944404,1713535922495,-500.0,0.00016368,2]
[322944405,1713535922504,-931.35,0.00016368,2]
[322944406,1713535922514,-1455.9,0.00016368,2]
[322944407,1713535922524,-500.0,0.00016368,2]
[322944408,1713535922534,-500.0,0.00016368,2]
[322944409,1713535922543,-500.0,0.00016368,2]
[322944410,1713535922553,-814.74,0.00016368,2]
[322944411,1713535922562,-944.41,0.00016368,2]
[322944412,1713535922572,-500.0,0.00016368,2]
[322944413,1713535922581,-650.39,0.00016368,2]
[322944414,1713535922594,-1405.86,0.00016368,2]
[322944415,1713535922603,-500.0,0.00016368,2]
[322944416,1713535922613,-1529.93,0.00016368,2]
[322944417,1713535922625,-500.0,0.00016368,2]
[322944418,1713535922634,-500.0,0.00016368,2]
[322944419,1713535922644,-500.0,0.00016368,2]
[322944420,1713535922654,-1810.02,0.00016368,2]
[322944421,1713535922664,-765.3,0.00016368,2]
[322944422,1713535922674,-2885.93,0.00016368,2]
[322944423,1713535922683,-988.91,0.00016368,2]
[322944424,1713535922694,-1094.15,0.00016368,2]
[322944425,1713535922704,-2263.75,0.00016368,2]
[322944426,1713535922714,-500.0,0.00016368,2]
[322944427,1713535922724,-500.0,0.00016368,2]
[322944428,1713535922733,-500.0,0.00016368,2]
[322944429,1713535922743,-500.0,0.00016368,2]
[322944430,1713535922752,-500.0,0.00016368,2]
[322944431,1713535922762,-937.08,0.00016368,2]
[322944432,1713535922772,-500.0,0.00016368,2]
[322944433,1713535922781,-500.0,0.00016368,2]
[322944434,1713535922791,-2850.78,0.00016368,2]
[322944435,1713535922800,-1250.61,0.00016368,2]
[322944436,1713535922810,-524.6,0.00016368,2]
[322944437,1713535922819,-765.0,0.00016368,2]
[322944438,1713535922829,-516.91,0.00016368,2]
[322944439,1713535922840,-500.0,0.00016368,2]
[322944440,1713535922851,-1174.28,0.00016368,2]
[322944441,1713535922861,-1050.54,0.00016368,2]
[322944442,1713535922871,-500.0,0.00016368,2]
[322944443,1713535922881,-2154.19,0.00016368,2]
[322944444,1713535922890,-500.0,0.00016368,2]
[322944445,1713535922900,-1168.31,0.00016368,2]
[322944446,1713535922910,-1313.14,0.00016368,2]
[322944447,1713535922920,-500.0,0.00016368,2]
[322944448,1713535922929,-1806.46,0.00016368,2]
[322944449,1713535922939,-350.51,0.00016368,2]
[322944450,1713535922948,-500.0,0.00016368,2]
[322944451,1713535922958,-773.55,0.00016368,2]
[322944452,1713535922967,-500.0,0.00016368,2]
[322944453,1713535922977,-1232.96,0.00016368,2]
[322944454,1713535922986,-2552.13,0.00016368,2]
[322944455,1713535922995,-908.87,0.00016368,2]
[322944456,1713535923006,-1067.76,0.00016368,2]
[322944457,1713535923015,-500.0,0.00016368,2]
[322944458,1713535923025,-500.0,0.00016368,2]
[322944459,1713535923034,-500.0,0.00016368,2]
[322944460,1713535923044,-500.0,0.00016368,2]
[322944461,1713535923053,-976.02,0.00016368,2]
[322944462,1713535923063,-500.0,0.00016368,2]
[322944463,1713535923073,-500.61,0.00016368,2]
[322944464,1713535923083,-1081.44,0.00016368,2]
[322944465,1713535923095,-595.69,0.00016368,2]
[322944466,1713535923104,-531.86,0.00016368,2]
[322944467,1713535923114,-1026.51,0.00016368,2]
[322944468,1713535923125,-500.0,0.00016368,2]
[322944469,1713535923135,-1415.13,0.00016368,2]
[322944470,1713535923144,-500.0,0.00016368,2]
[322944471,1713535923154,-500.0,0.00016368,2]
[322944472,1713535923163,-500.0,0.00016368,2]
[322944473,1713535923173,-1097.06,0.00016368,2]
[322944474,1713535923183,-827.65,0.00016368,2]
[322944475,1713535923192,-500.0,0.00016368,2]
[322944476,1713535923202,-512.9,0.00016368,2]
[322944477,1713535923211,-1727.14,0.00016368,2]
[322944478,1713535923221,-2285.14,0.00016368,2]
[322944479,1713535923230,-766.84,0.00016368,2]
[322944480,1713535923240,-568.31,0.00016368,2]
[322944481,1713535923250,-841.6,0.00016368,2]
[322944482,1713535923260,-500.0,0.00016368,2]
[322944483,1713535923270,-1292.8,0.00016368,2]
[322944484,1713535923280,-500.0,0.00016368,2]
[322944485,1713535923289,-1143.03,0.00016368,2]
[322944486,1713535923299,-1941.29,0.00016368,2]
[322944487,1713535923309,-1479.43,0.00016368,2]
[322944488,1713535923318,-500.0,0.00016368,2]
[322944489,1713535923329,-577.24,0.00016368,2]
[322944490,1713535923339,-1941.82,0.00016368,2]
[322944491,1713535923352,-500.0,0.00016368,2]
[322944492,1713535923361,-500.0,0.00016368,2]
[322944493,1713535923371,-1405.98,0.00016368,2]
[322944494,1713535923380,-852.62,0.00016368,2]
[322944495,1713535923390,-500.0,0.00016368,2]
[322944496,1713535923400,-500.0,0.00016368,2]
[322944497,1713535923410,-500.0,0.00016368,2]
[322944498,1713535923419,-598.56,0.00016368,2]
[322944499,1713535923429,-806.19,0.00016368,2]
[322944500,1713535923438,-500.0,0.00016368,2]
[322944501,1713535923447,-2706.55,0.00016368,2]
[322944502,1713535923457,-500.0,0.00016368,2]
[322944503,1713535923466,-698.6,0.00016368,2]
[322944504,1713535923476,-500.0,0.00016368,2]
[322944505,1713535923485,-1458.1,0.00016368,2]
[322944506,1713535923494,-500.0,0.00016368,2]
[322944507,1713535923504,-500.0,0.00016368,2]
[322944508,1713535923513,-1248.98,0.00016368,2]
[322944509,1713535923523,-500.0,0.00016368,2]
[322944510,1713535923533,-1033.18,0.00016368,2]
[322944511,1713535923542,-603.38540381,0.00016368,2]
[322944512,1713535923553,-2305.13,0.00016368,2]
[322944513,1713535923563,-638.82,0.00016368,2]
[322944514,1713535923573,-500.0,0.00016368,2]
[322944515,1713535923584,-500.0,0.00016368,2]
[322944516,1713535923599,-2011.14,0.00016368,2]
[322944517,1713535923611,-500.0,0.00016368,2]
[322944518,1713535923632,-500.0,0.00016368,2]
[322944519,1713535923652,-500.0,0.00016368,2]
[322944520,1713535923672,-1960.57,0.00016368,2]
[322944521,1713535923698,-601.48,0.00016368,2]
[322944522,1713535923718,-500.0,0.00016368,2]
[322944523,1713535923730,-1858.15,0.00016368,2]
[322944524,1713535923741,-500.0,0.00016368,2]
[322944525,1713535923751,-658.72,0.00016368,2]
[322944526,1713535923762,-500.0,0.00016368,2]
[322944527,1713535923773,-500.0,0.00016368,2]
[322944528,1713535923784,-500.0,0.00016368,2]
[322944529,1713535923793,-1281.13,0.00016368,2]
[322944530,1713535923803,-1472.8,0.00016368,2]
[322944531,1713535923813,-500.0,0.00016368,2]
[322944532,1713535923823,-500.0,0.00016368,2]
[322944533,1713535923834,-719.07,0.00016368,2]
[322944534,1713535923850,-500.0,0.00016368,2]
[322944535,1713535923859,-1672.02,0.00016368,2]
[322944536,1713535923870,-866.38,0.00016368,2]
[322944537,1713535923879,-2306.99,0.00016368,2]
[322944538,1713535923889,-1013.57,0.00016368,2]
[322944539,1713535923899,-1186.87,0.00016368,2]
[322944540,1713535923908,-1832.01,0.00016368,2]
[322944541,1713535923918,-774.6,0.00016368,2]
[322944542,1713535923928,-500.0,0.00016368,2]
[322944543,1713535923939,-500.0,0.00016368,2]
[322944544,1713535923948,-500.0,0.00016368,2]
[322944545,1713535923958,-916.09,0.00016368,2]
[322944546,1713535923967,-500.0,0.00016368,2]
[322944547,1713535923977,-1477.7,0.00016368,2]
[322944548,1713535923986,-583.73,0.00016368,2]
[322944549,1713535923997,-500.0,0.00016369,2]
[322944550,1713535924007,-500.0,0.00016369,2]
[322944551,1713535924016,-500.0,0.00016369,2]
[322944552,1713535924026,-500.0,0.00016369,2]
[322944553,1713535924036,-500.0,0.00016369,2]
[322944554,1713535924046,-500.0,0.00016369,2]
[322944555,1713535924055,-568.30620624,0.00016369,2]
[322944556,1713535924065,-331.24957252,0.00016369,2]
[322944557,1713535924074,-500.0,0.00016369,2]
[322944558,1713535924084,-481.34682637,0.00016369,2]
[322944559,1713535924098,-500.0,0.00016369,2]
[322944560,1713535924108,-500.0,0.00016369,2]
[322944561,1713535924117,-500.0,0.00016369,2]
[322944562,1713535924127,-621.63528582,0.00016369,2]
[322944563,1713535924136,-500.0,0.00016369,2]
[322944564,1713535924145,-500.0,0.00016369,2]
[322944565,1713535924155,-500.0,0.00016369,2]
[322944566,1713535924165,-500.0,0.00016369,2]
[322944567,1713535924175,-500.0,0.00016369,2]
[322944568,1713535924184,-500.0,0.00016369,2]
[322944569,1713535924193,-500.0,0.00016369,2]
[322944570,1713535924203,-500.0,0.00016369,2]
[322944571,1713535924212,-500.0,0.00016369,2]
[322944572,1713535924222,-339.48319752,0.00016369,2]
[322944573,1713535924231,-500.0,0.00016369,2]
[322944574,1713535924240,-500.0,0.00016369,2]
[322944575,1713535924249,-520.22767038,0.00016369,2]
[322944576,1713535924259,-500.0,0.00016369,2]
[322944577,1713535924269,-500.0,0.00016369,2]
[322944578,1713535924279,-500.0,0.00016369,2]
[322944579,1713535924289,-500.0,0.00016369,2]
[322944580,1713535924299,-500.0,0.00016369,2]
[322944581,1713535924309,-500.0,0.00016369,2]
[322944582,1713535924318,-500.0,0.00016369,2]
[322944583,1713535924328,-500.0,0.00016369,2]
[322944584,1713535924338,-500.0,0.00016369,2]
[322944585,1713535924350,-500.0,0.00016369,2]
[322944586,1713535924360,-500.0,0.00016369,2]
[322944587,1713535924370,-500.0,0.00016369,2]
[322944588,1713535924380,-500.0,0.00016369,2]
[322944589,1713535924390,-500.0,0.00016369,2]
[322944590,1713535924400,-500.0,0.00016369,2]
[322944591,1713535924409,-500.0,0.00016369,2]
[322944592,1713535924419,-500.0,0.00016369,2]
[322944593,1713535924429,-500.0,0.00016369,2]
[322944594,1713535924439,-500.0,0.00016369,2]
[322944595,1713535924448,-500.0,0.00016369,2]
[322944596,1713535924458,-500.0,0.00016369,2]
[322944597,1713535924469,-500.0,0.00016369,2]
[322944598,1713535924478,-500.0,0.00016369,2]
[322944599,1713535924487,-500.0,0.00016369,2]
[322944600,1713535924497,-594.85,0.00016369,2]
[322944601,1713535924506,-2683.22,0.00016369,2]
[322944602,1713535924515,-1223.92,0.00016369,2]
[322944603,1713535924525,-3769.27,0.00016369,2]
[322944604,1713535924534,-2713.38,0.00016369,2]
[322944605,1713535924543,-2503.47,0.00016369,2]
[322944606,1713535924552,-4027.8,0.00016369,2]
[322944607,1713535924562,-2546.1,0.00016369,2]
[322944608,1713535924572,-500.0,0.00016369,2]
[322944609,1713535924581,-500.0,0.00016369,2]
[322944610,1713535924592,-1841.36,0.00016369,2]
[322944611,1713535924601,-500.0,0.00016369,2]
[322944612,1713535924611,-4185.87,0.00016369,2]
[322944613,1713535924624,-4303.66,0.00016369,2]
[322944614,1713535924633,-539.67,0.00016369,2]
[322944615,1713535924642,-500.0,0.00016369,2]
[322944616,1713535924651,-783.51,0.00016369,2]
[322944617,1713535924660,-2818.66,0.00016369,2]
[322944618,1713535924670,-1071.14,0.00016369,2]
[322944619,1713535924679,-500.0,0.00016369,2]
[322944620,1713535924689,-5735.71,0.00016369,2]
[322944621,1713535924699,-500.0,0.00016369,2]
[322944622,1713535924709,-5058.09,0.00016369,2]
[322944623,1713535924718,-758.39,0.00016369,2]
[322944624,1713535924728,-500.0,0.00016369,2]
[322944625,1713535924737,-500.0,0.00016369,2]
[322944626,1713535924747,-500.0,0.00016369,2]
[322944627,1713535924756,-2882.56,0.00016369,2]
[322944628,1713535924766,-500.0,0.00016369,2]
[322944629,1713535924775,-1743.21,0.00016369,2]
[322944630,1713535924784,-1283.02,0.00016369,2]
[322944631,1713535924794,-500.0,0.00016369,2]
[322944632,1713535924803,-500.0,0.00016369,2]
[322944633,1713535924813,-677.05,0.00016369,2]
[322944634,1713535924822,-500.0,0.00016369,2]
[322944635,1713535924947,-500.0,0.00016369,2]
[322944636,1713535924957,-473.24,0.00016369,2]
[322944637,1713535924966,-500.0,0.00016369,2]
[322944638,1713535924976,-2729.3,0.00016369,2]
[322944639,1713535924985,-3307.01,0.00016369,2]
[322944640,1713535924994,-500.0,0.00016369,2]
[322944641,1713535925003,-2909.5,0.00016369,2]
[322944642,1713535925012,-500.0,0.00016369,2]
[322944643,1713535925022,-500.66866065,0.00016369,2]
[322944644,1713535925031,-2763.44,0.00016369,2]
[322944645,1713535925041,-500.0,0.00016369,2]
[322944646,1713535925050,-500.0,0.00016369,2]
[322944647,1713535925059,-4372.57,0.00016369,2]
[322944648,1713535925068,-500.0,0.00016369,2]
[322944649,1713535925078,-3104.32,0.00016369,2]
[322944650,1713535925087,-500.0,0.00016369,2]
[322944651,1713535925099,-1858.8,0.00016369,2]
[322944652,1713535925108,-500.0,0.00016369,2]
[322944653,1713535925118,-2809.8,0.00016369,2]
[322944654,1713535925128,-643.66441602,0.00016369,2]
[322944655,1713535925138,-968.62,0.00016369,2]
[322944656,1713535925147,-500.0,0.00016369,2]
[322944657,1713535925157,-3566.65,0.00016369,2]
[322944658,1713535925166,-3088.13,0.00016369,2]
[322944659,1713535925176,-2073.56,0.00016369,2]
[322944660,1713535925185,-4021.21,0.00016369,2]
[322944661,1713535925195,-500.0,0.00016369,2]
[322944662,1713535925205,-4749.78,0.00016369,2]
[322944663,1713535925214,-3873.23,0.00016369,2]
[322944664,1713535925225,-2721.08,0.00016369,2]
[322944665,1713535925234,-3323.51,0.00016369,2]
[322944666,1713535925243,-4524.53,0.00016369,2]
[322944667,1713535925253,-2991.79,0.00016369,2]
[322944668,1713535925262,-1000.0,0.0001637,2]
[322944669,1713535925271,-500.0,0.0001637,2]
[322944670,1713535925280,-7984.31474331,0.00016379,2]
[322944671,1713535925289,-400.695251,0.00016381,2]
[322944672,1713535925298,-320.486329,0.00016381,2]
[322944673,1713535925307,-200.0,0.00016381,2]
[322944674,1713535925316,-35999.037138,0.00016381,2]
[322944675,1713535925326,-218728.77397281,0.00016396,2]
[322944676,1713535925335,-156.37954986,0.00016397,2]
[322944677,1713535925346,-217.95469798,0.00016397,2]
[322944678,1713535925356,-495.1414103,0.00016397,2]
[322944679,1713535925365,-200.0,0.00016397,2]
[322944680,1713535925374,-795.71390371,0.00016399,2]
[322944681,1713535925383,-1250.0,0.000164,2]
[322944682,1713535925392,-500.0,0.000164,2]
[322944683,1713535925401,-317.55,0.000164,2]
[322944684,1713535925410,-5000.0,0.000164,2]
[322944685,1713535925420,-559.156,0.00016416,2]
[322944686,1713535925429,-155.21099947,0.00016436,2]
[322944687,1713535925438,-166.67533515,0.00016436,2]
[322944688,1713535925447,-155.08340295,0.00016436,2]
[322944689,1713535925456,-287.2064553,0.00016437,2]
[322944690,1713535925465,-1039.36,0.00016438,2]
[322944691,1713535925474,-500.0,0.00016438,2]
[322944692,1713535925484,-755.45,0.00016438,2]
[322944693,1713535925493,-755.45,0.00016438,2]
[322944694,1713535925502,-755.45,0.00016438,2]
[322944695,1713535925511,-755.45,0.00016438,2]
[322944696,1713535925520,-755.45,0.00016438,2]
[322944697,1713535925529,-755.45,0.00016438,2]
[322944698,1713535925538,-2000.0,0.00016438,2]
[322944699,1713535925547,-2000.0,0.00016438,2]
[322944700,1713535925557,-2000.0,0.00016438,2]
[322944701,1713535925566,-2000.0,0.00016438,2]
[322944702,1713535925574,-2000.0,0.00016438,2]
[322944703,1713535925583,-2000.0,0.00016438,2]
[322944704,1713535925593,-2000.0,0.00016438,2]
[322944705,1713535925602,-2000.0,0.00016438,2]
[322944706,1713535925614,-2000.0,0.00016438,2]
[322944707,1713535925624,-2000.0,0.00016438,2]
[322944708,1713535925633,-2000.0,0.00016438,2]
[322944709,1713535925643,-2000.0,0.00016438,2]
[322944710,1713535925652,-2046.33617725,0.00016438,2]
[322944711,1713535925662,-150.0,0.00016438,2]
[322944712,1713535925671,-203.432623,0.00016438,2]
[322944713,1713535925680,-1000.0,0.00016438,2]
[322944714,1713535925690,-180.017431,0.00016438,2]
[322944715,1713535925699,-151.0,0.00016438,2]
[322944716,1713535925709,-159.215426,0.00016438,2]
[322944717,1713535925719,-151.455844,0.00016438,2]
[322944718,1713535925728,-270.321712,0.00016438,2]
[322944719,1713535925737,-151.475569,0.00016438,2]
[322944720,1713535925747,-425.201876,0.00016438,2]
[322944721,1713535925756,-425.201876,0.00016438,2]
[322944722,1713535925765,-425.201876,0.00016438,2]
[322944723,1713535925774,-425.201876,0.00016438,2]
[322944724,1713535925785,-425.201876,0.00016438,2]
[322944725,1713535925794,-425.201876,0.00016438,2]
[322944726,1713535925803,-425.201876,0.00016438,2]
[322944727,1713535925813,-425.201876,0.00016438,2]
[322944728,1713535925822,-425.201876,0.00016438,2]
[322944729,1713535925831,-425.201876,0.00016438,2]
[322944730,1713535925841,-151.0,0.00016438,2]
[322944731,1713535925851,-151.0,0.00016438,2]
[322944732,1713535925860,-151.0,0.00016438,2]
[322944733,1713535925870,-151.0,0.00016438,2]
[322944734,1713535925879,-151.0,0.00016438,2]
[322944735,1713535925889,-151.0,0.00016438,2]
[322944736,1713535925898,-151.0,0.00016438,2]
[322944737,1713535925907,-151.0,0.00016438,2]
[322944738,1713535925916,-151.0,0.00016438,2]
[322944739,1713535925925,-151.0,0.00016438,2]
[322944740,1713535925934,-386.352824,0.00016438,2]
[322944741,1713535925943,-386.352824,0.00016438,2]
[322944742,1713535925953,-386.352824,0.00016438,2]
[322944743,1713535925962,-386.352824,0.00016438,2]
[322944744,1713535925971,-440.643944,0.00016438,2]
[322944745,1713535925981,-386.352824,0.00016438,2]
[322944746,1713535925990,-386.352824,0.00016438,2]
[322944747,1713535925999,-386.352824,0.00016438,2]
[322944748,1713535926009,-386.352824,0.00016438,2]
[322944749,1713535926018,-386.352824,0.00016438,2]
[322944750,1713535926027,-386.352824,0.00016438,2]
[322944751,1713535926036,-151.0,0.00016438,2]
[322944752,1713535926045,-151.0,0.00016438,2]
[322944753,1713535926055,-151.0,0.00016438,2]
[322944754,1713535926064,-151.0,0.00016438,2]
[322944755,1713535926073,-151.0,0.00016438,2]
[322944756,1713535926082,-151.0,0.00016438,2]
[322944757,1713535926092,-151.0,0.00016438,2]
[322944758,1713535926104,-151.0,0.00016438,2]
[322944759,1713535926113,-255.086791,0.00016438,2]
[322944760,1713535926123,-221.098334,0.00016438,2]
[322944761,1713535926132,-221.098334,0.00016438,2]
[322944762,1713535926142,-221.098334,0.00016438,2]
[322944763,1713535926151,-221.098334,0.00016438,2]
[322944764,1713535926161,-221.098334,0.00016438,2]
[322944765,1713535926170,-220.000598,0.00016438,2]
[322944766,1713535926179,-220.000598,0.00016438,2]
[322944767,1713535926189,-220.000598,0.00016438,2]
[322944768,1713535926198,-220.000598,0.00016438,2]
[322944769,1713535926207,-220.000598,0.00016438,2]
[322944770,1713535926217,-220.000598,0.00016438,2]
[322944771,1713535926226,-221.098334,0.00016438,2]
[322944772,1713535926235,-221.098334,0.00016438,2]
[322944773,1713535926244,-221.098334,0.00016438,2]
[322944774,1713535926253,-220.000598,0.00016438,2]
[322944775,1713535926262,-221.098334,0.00016438,2]
[322944776,1713535926272,-221.098334,0.00016438,2]
[322944777,1713535926281,-220.000598,0.00016438,2]
[322944778,1713535926290,-220.000598,0.00016438,2]
[322944779,1713535926299,-220.000598,0.00016438,2]
[322944780,1713535926308,-220.000598,0.00016438,2]
[322944781,1713535926317,-220.000598,0.00016438,2]
[322944782,1713535926327,-151.0,0.00016438,2]
[322944783,1713535926336,-151.0,0.00016438,2]
[322944784,1713535926347,-151.0,0.00016438,2]
[322944785,1713535926358,-151.0,0.00016438,2]
[322944786,1713535926367,-151.0,0.00016438,2]
[322944787,1713535926379,-151.0,0.00016438,2]
[322944788,1713535926389,-151.0,0.00016438,2]
[322944789,1713535926399,-151.0,0.00016438,2]
[322944790,1713535926409,-151.0,0.00016438,2]
[322944791,1713535926420,-151.0,0.00016438,2]
[322944792,1713535926430,-151.0,0.00016438,2]
[322944793,1713535926441,-151.0,0.00016438,2]
[322944794,1713535926451,-151.0,0.00016438,2]
[322944795,1713535926461,-151.0,0.00016438,2]
[322944796,1713535926471,-151.0,0.00016438,2]
[322944797,1713535926481,-151.0,0.00016438,2]
[322944798,1713535926491,-151.787034,0.00016438,2]
[322944799,1713535926501,-151.0,0.00016438,2]
[322944800,1713535926510,-275.11493,0.00016438,2]
[322944801,1713535926520,-151.0,0.00016438,2]
[322944802,1713535926529,-151.0,0.00016438,2]
[322944803,1713535926539,-275.11493,0.00016438,2]
[322944804,1713535926548,-155.954689,0.00016438,2]
[322944805,1713535926559,-151.0,0.00016438,2]
[322944806,1713535926569,-275.11493,0.00016438,2]
[322944807,1713535926579,-164.761603,0.00016438,2]
[322944808,1713535926590,-275.11493,0.00016438,2]
[322944809,1713535926609,-275.11493,0.00016438,2]
[322944810,1713535926625,-151.0,0.00016438,2]
[322944811,1713535926635,-155.976164,0.00016438,2]
[322944812,1713535926646,-275.11493,0.00016438,2]
[322944813,1713535926658,-275.11493,0.00016438,2]
[322944814,1713535926668,-275.11493,0.00016438,2]
[322944815,1713535926679,-275.11493,0.00016438,2]
[322944816,1713535926689,-153.011891,0.00016438,2]
[322944817,1713535926699,-275.11493,0.00016438,2]
[322944818,1713535926709,-363.856778,0.00016438,2]
[322944819,1713535926720,-363.856778,0.00016438,2]
[322944820,1713535926730,-363.856778,0.00016438,2]
[322944821,1713535926740,-363.856778,0.00016438,2]
[322944822,1713535926750,-363.856778,0.00016438,2]
[322944823,1713535926760,-363.856778,0.00016438,2]
[322944824,1713535926770,-363.856778,0.00016438,2]
[322944825,1713535926781,-363.856778,0.00016438,2]
[322944826,1713535926791,-363.856778,0.00016438,2]
[322944827,1713535926801,-363.856778,0.00016438,2]
[322944828,1713535926811,-174.590103,0.00016438,2]
[322944829,1713535926821,-174.590103,0.00016438,2]
[322944830,1713535926831,-174.590103,0.00016438,2]
[322944831,1713535926842,-174.590103,0.00016438,2]
[322944832,1713535926856,-174.590103,0.00016438,2]
[322944833,1713535926866,-151.0,0.00016438,2]
[322944834,1713535926876,-151.0,0.00016438,2]
[322944835,1713535926886,-151.0,0.00016438,2]
[322944836,1713535926896,-174.590103,0.00016438,2]
[322944837,1713535926906,-151.0,0.00016438,2]
[322944838,1713535926917,-174.590103,0.00016438,2]
[322944839,1713535926927,-151.0,0.00016438,2]
[322944840,1713535926937,-174.590103,0.00016438,2]
[322944841,1713535926947,-174.590103,0.00016438,2]
[322944842,1713535926956,-174.590103,0.00016438,2]
[322944843,1713535926967,-205.706947,0.00016438,2]
[322944844,1713535926977,-151.0,0.00016438,2]
[322944845,1713535926987,-151.0,0.00016438,2]
[322944846,1713535926996,-151.0,0.00016438,2]
[322944847,1713535927006,-151.0,0.00016438,2]
[322944848,1713535927015,-151.0,0.00016438,2]
[322944849,1713535927024,-153.002316,0.00016438,2]
[322944850,1713535927033,-151.0,0.00016438,2]
[322944851,1713535927043,-151.0,0.00016438,2]
[322944852,1713535927052,-151.0,0.00016438,2]
[322944853,1713535927061,-698.58,0.00016438,2]
[322944854,1713535927071,-177.142217,0.00016438,2]
[322944855,1713535927081,-177.142217,0.00016438,2]
[322944856,1713535927090,-177.142217,0.00016438,2]
[322944857,1713535927105,-177.142217,0.00016438,2]
[322944858,1713535927114,-177.142217,0.00016438,2]
[322944859,1713535927124,-177.142217,0.00016438,2]
[322944860,1713535927133,-177.142217,0.00016438,2]
[322944861,1713535927142,-177.142217,0.00016438,2]
[322944862,1713535927152,-177.142217,0.00016438,2]
[322944863,1713535927163,-177.142217,0.00016438,2]
[322944864,1713535927173,-354.929882,0.00016438,2]
[322944865,1713535927182,-354.929882,0.00016438,2]
[322944866,1713535927193,-354.929882,0.00016438,2]
[322944867,1713535927202,-354.929882,0.00016438,2]
[322944868,1713535927211,-354.929882,0.00016438,2]
[322944869,1713535927221,-354.929882,0.00016438,2]
[322944870,1713535927231,-354.929882,0.00016438,2]
[322944871,1713535927240,-354.929882,0.00016438,2]
[322944872,1713535927250,-354.929882,0.00016438,2]
[322944873,1713535927259,-354.929882,0.00016438,2]
[322944874,1713535927269,-151.0,0.00016438,2]
[322944875,1713535927279,-154.549648,0.00016438,2]
[322944876,1713535927290,-151.0,0.00016438,2]
[322944877,1713535927299,-151.0,0.00016438,2]
[322944878,1713535927309,-151.0,0.00016438,2]
[322944879,1713535927318,-215.265496,0.00016438,2]
[322944880,1713535927329,-215.265496,0.00016438,2]
[322944881,1713535927341,-215.265496,0.00016438,2]
[322944882,1713535927356,-215.265496,0.00016438,2]
[322944883,1713535927366,-215.265496,0.00016438,2]